fUSD/lending_fUSD_20260404
["ID","MTS","AMOUNT","RATE_DAILY","PERIOD"]
[419673364,1775278242090,-150.0,0.00013973,2]
[419673365,1775278242100,-166.66,0.00013973,2]
[419673366,1775278242111,-500.0,0.0001398,2]
[419673367,1775278242121,-501.15172574,0.0001398,2]
[419673368,1775278242131,-500.0,0.0001398,2]
[419673369,1775278242141,-500.0,0.0001398,2]
[419673370,1775278242150,-473.51720145,0.00014006,2]
[419673371,1775278242159,-500.0,0.0001405,2]
[419673372,1775278242170,-500.0,0.0001405,2]
[419673373,1775278242181,-500.0,0.0001405,2]
[419673374,1775278242190,-166.66,0.0001411,2]
[419673375,1775278242200,-150.0,0.00014247,2]
[419673376,1775278242209,-150.0,0.00014247,2]
[419673377,1775278242218,-150.0,0.00014247,2]
[419673378,1775278242228,-166.66,0.00014247,2]
[419673379,1775278242238,-503.42990415,0.00014248,2]
[419673380,1775278242248,-1002.85794686,0.00014248,2]
[419673381,1775278242257,-1637.4,0.00014384,2]
[419673382,1775278242267,-166.66,0.00014384,2]
[419673383,1775278242276,-380.0,0.00014428,2]
[419673384,1775278242286,-4609.0,0.00014429,2]
[419673385,1775278242296,-894.29704901,0.00014528,2]
[419673386,1775278242306,-1001.37054133,0.00014528,2]
[419673387,1775278242317,-503.75625281,0.00014528,2]
[419673388,1775278242326,-21318.26963744,0.00014535,2]
[419673389,1775278242335,-1000.0,0.00014598,2]
[419673390,1775278242344,-1000.0,0.00014598,2]
[419673391,1775278242354,-1000.0,0.00014598,2]
[419673392,1775278242363,-7982.11544828,0.00014691,2]
[419673393,1775278242372,-500.0,0.00014705,2]
[419673394,1775278242381,-514.47518034,0.0001503,2]
[419673395,1775278242390,-781.57,0.0001503,2]
[419673396,1775278242400,-1637.4,0.00015068,2]
[419673397,1775278242409,-267.31,0.00015068,2]
[419673398,1775278242419,-500.0,0.00015072,2]
[419673399,1775278242429,-500.0,0.00015072,2]
[419673400,1775278242438,-500.0,0.00015072,2]
[419673401,1775278242448,-500.0,0.00015072,2]
[419673402,1775278242457,-500.0,0.00015072,2]
[419673403,1775278242466,-500.0,0.00015072,2]
[419673404,1775278242476,-250.0,0.00015072,2]
[419673405,1775278242485,-500.0,0.00015072,2]
[419673406,1775278242494,-250.0,0.00015072,2]
[419673407,1775278242503,-500.0,0.00015072,2]
[419673408,1775278242513,-250.0,0.00015072,2]
[419673409,1775278242522,-500.0,0.00015072,2]
[419673410,1775278242532,-250.0,0.00015072,2]
[419673411,1775278242544,-500.0,0.00015072,2]
[419673412,1775278242555,-250.0,0.00015072,2]
[419673413,1775278242564,-500.0,0.00015072,2]
[419673414,1775278242574,-250.0,0.00015072,2]
[419673415,1775278242583,-500.0,0.00015072,2]
[419673416,1775278242592,-250.0,0.00015072,2]
[419673417,1775278242601,-250.0,0.00015072,2]
[419673418,1775278242610,-250.0,0.00015072,2]
[419673419,1775278242620,-500.0,0.00015072,2]
[419673420,1775278242630,-250.0,0.00015072,2]
[419673421,1775278242639,-500.0,0.00015072,2]
[419673422,1775278242648,-250.0,0.00015072,2]
[419673423,1775278242658,-500.0,0.00015072,2]
[419673424,1775278242667,-500.0,0.00015072,2]
[419673425,1775278242677,-500.0,0.00015072,2]
[419673426,1775278242686,-500.0,0.00015072,2]
[419673427,1775278242695,-500.0,0.00015072,2]
[419673428,1775278242704,-500.0,0.00015072,2]
[419673429,1775278242715,-500.0,0.00015072,2]
[419673430,1775278242724,-500.0,0.00015072,2]
[419673431,1775278242734,-500.0,0.00015072,2]
[419673432,1775278242743,-151.0,0.00015072,2]
[419673433,1775278242752,-174.61919141,0.00015072,2]
[419673434,1775278242762,-170.0,0.00015072,2]
[419673435,1775278242772,-170.0,0.00015072,2]
[419673436,1775278242781,-170.0,0.00015072,2]
[419673437,1775278242790,-304.16643308,0.00015072,2]
[419673438,1775278242799,-500.0,0.00015127,2]
[419673439,1775278242809,-151.0,0.00015127,2]
[419673440,1775278242818,-1500.0,0.00015146,2]
[419673442,1775278242827,-1500.0,0.00015146,2]
[419673443,1775278242836,-829.77078849,0.00015146,2]
[419673444,1775278242845,-500.0,0.00015182,2]
[419673445,1775278242854,-151.0,0.00015182,2]
[419673446,1775278242863,-10000.0,0.00015205,2]
[419673447,1775278242872,-21318.26963744,0.00015217,2]
[419673448,1775278242881,-500.0,0.00015237,2]
[419673449,1775278242890,-151.0,0.00015237,2]
[419673450,1775278242899,-500.0,0.00015292,2]
[419673451,1775278242908,-151.0,0.00015292,2]
[419673452,1775278242917,-500.0,0.00015347,2]
[419673453,1775278242926,-151.0,0.00015347,2]
[419673454,1775278242935,-309.701303,0.00015387,2]
[419673455,1775278242944,-500.0,0.00015402,2]
[419673456,1775278242953,-151.0,0.00015402,2]
[419673457,1775278242962,-500.0,0.00015457,2]
[419673458,1775278242971,-151.0,0.00015457,2]
[419673459,1775278242980,-500.0,0.00015512,2]
[419673460,1775278242988,-151.0,0.00015512,2]
[419673461,1775278242998,-1095.00508502,0.00015523,2]
[419673462,1775278243007,-1084.71091839,0.00015523,2]
[419673463,1775278243016,-1142.54888843,0.00015523,2]
[419673464,1775278243025,-959.51371569,0.00015523,2]
[419673465,1775278243034,-500.0,0.00015567,2]
[419673466,1775278243043,-151.0,0.00015567,2]
[419673467,1775278243053,-181.08010149,0.0001562,2]
[419673468,1775278243063,-500.0,0.00015622,2]
[419673469,1775278243072,-188.11543045,0.00015622,2]
[419673470,1775278243082,-869.0,0.00015633,2]
[419673471,1775278243091,-869.0,0.00015634,2]
[419673472,1775278243100,-869.0,0.0001564,2]
[419673473,1775278243109,-869.0,0.00015674,2]
[419673474,1775278243119,-869.0,0.00015696,2]
[419673475,1775278243128,-2000.0,0.00015701,2]
[419673476,1775278243137,-869.0,0.00015703,2]
[419673477,1775278243147,-869.0,0.00015708,2]
[419673478,1775278243156,-1637.4,0.00015753,2]
[419673479,1775278243166,-483.76,0.00015779,2]
[419673480,1775278243175,-483.76,0.00015779,2]
[419673481,1775278243184,-483.76,0.00015779,2]
[419673482,1775278243193,-483.76,0.00015779,2]
[419673483,1775278243203,-483.74,0.00015779,2]
[419673484,1775278243212,-2000.0,0.00015801,2]
[419673485,1775278243221,-2479.0,0.00015872,2]
[419673486,1775278243231,-500.0,0.0001589,2]
[419673487,1775278243240,-500.0,0.0001589,2]
[419673488,1775278243250,-500.0,0.0001589,2]
[419673489,1775278243259,-500.0,0.0001589,2]
[419673490,1775278243268,-500.0,0.0001589,2]
[419673491,1775278243278,-500.0,0.0001589,2]
[419673492,1775278243287,-500.0,0.0001589,2]
[419673493,1775278243297,-500.0,0.0001589,2]
[419673494,1775278243307,-500.0,0.0001589,2]
[419673495,1775278243316,-500.0,0.0001589,2]
[419673496,1775278243325,-500.0,0.0001589,2]
[419673497,1775278243334,-500.0,0.0001589,2]
[419673498,1775278243344,-500.0,0.0001589,2]
[419673499,1775278243353,-500.0,0.0001589,2]
[419673500,1775278243363,-500.0,0.0001589,2]
[419673501,1775278243372,-500.0,0.0001589,2]
[419673502,1775278243382,-500.0,0.0001589,2]
[419673503,1775278243391,-500.0,0.0001589,2]
[419673504,1775278243401,-500.0,0.0001589,2]
[419673505,1775278243410,-500.0,0.0001589,2]
[419673506,1775278243419,-500.0,0.0001589,2]
[419673507,1775278243429,-500.0,0.0001589,2]
[419673508,1775278243439,-500.0,0.0001589,2]
[419673509,1775278243449,-500.0,0.0001589,2]
[419673510,1775278243458,-500.0,0.0001589,2]
[419673511,1775278243468,-500.0,0.0001589,2]
[419673512,1775278243477,-500.0,0.0001589,2]
[419673513,1775278243487,-500.0,0.0001589,2]
[419673514,1775278243496,-500.0,0.0001589,2]
[419673515,1775278243506,-500.0,0.0001589,2]
[419673516,1775278243515,-500.0,0.0001589,2]
[419673517,1775278243524,-500.0,0.0001589,2]
[419673518,1775278243534,-500.0,0.0001589,2]
[419673520,1775278243758,-500.0,0.0001589,2]
[419673521,1775278243768,-500.0,0.0001589,2]
[419673522,1775278243777,-500.0,0.0001589,2]
[419673523,1775278243787,-500.0,0.0001589,2]
[419673524,1775278243796,-500.0,0.0001589,2]
[419673525,1775278243806,-500.0,0.0001589,2]
[419673526,1775278243816,-500.0,0.0001589,2]
[419673527,1775278243825,-500.0,0.0001589,2]
[419673528,1775278243835,-500.0,0.0001589,2]
[419673529,1775278243844,-500.0,0.0001589,2]
[419673530,1775278243853,-500.0,0.0001589,2]
[419673531,1775278243863,-500.0,0.0001589,2]
[419673532,1775278243872,-500.0,0.0001589,2]
[419673533,1775278243882,-500.0,0.0001589,2]
[419673534,1775278243891,-500.0,0.0001589,2]
[419673535,1775278243900,-500.0,0.0001589,2]
[419673536,1775278243910,-500.0,0.0001589,2]
[419673537,1775278243920,-500.0,0.0001589,2]
[419673538,1775278243929,-520.24272845,0.0001589,2]
[419673539,1775278243939,-2000.0,0.0001589,2]
[419673540,1775278243949,-21318.26963744,0.000159,2]
[419673541,1775278243958,-2000.0,0.00015901,2]
[419673542,1775278243969,-110000.0,0.00016,2]
[419673543,1775278243978,-110000.0,0.00016,3]
[419673544,1775278243988,-110000.0,0.00016,4]
[419673545,1775278243997,-110000.0,0.00016,5]
[419673546,1775278244007,-110000.0,0.00016,6]
[419673547,1775278244016,-110000.0,0.00016,7]
[419673548,1775278244026,-112891.3116221,0.00016,8]
[419673549,1775278244035,-2000.0,0.00016001,2]
[419673550,1775278244045,-10000.0,0.00016101,15]
[419673551,1775278244055,-8266.0,0.00016101,15]
[419673552,1775278244065,-869.0,0.00016125,2]
[419673553,1775278244074,-869.0,0.00016159,2]
[419673554,1775278244083,-187.78006525,0.00016168,2]
[419673555,1775278244092,-869.0,0.00016174,2]
[419673556,1775278244102,-869.0,0.00016175,2]
[419673557,1775278244111,-869.0,0.00016177,2]
[419673558,1775278244120,-869.0,0.00016217,2]
[419673559,1775278244130,-7982.11544828,0.00016302,2]
[419673560,1775278244140,-869.0,0.00016438,2]
[419673561,1775278244149,-567.12,0.00016438,2]
[419673562,1775278244159,-2500.0,0.00016438,2]
[419673563,1775278244169,-2500.0,0.00016438,2]
[419673564,1775278244178,-2500.0,0.00016438,2]
[419673565,1775278244188,-2500.0,0.00016438,2]
[419673566,1775278244198,-2500.0,0.00016438,2]
[419673567,1775278244207,-2500.0,0.00016438,2]
[419673568,1775278244217,-1612.08415852,0.00016438,2]
[419673569,1775278244226,-1339.0,0.00016438,2]
[419673570,1775278244237,-1339.0,0.00016438,2]
[419673571,1775278244246,-1339.0,0.00016438,2]
[419673572,1775278244256,-1339.0,0.00016438,2]
[419673573,1775278244265,-1339.0,0.00016438,2]
[419673574,1775278244275,-1339.0,0.00016438,2]
[419673575,1775278244285,-1339.0,0.00016438,2]
[419673576,1775278244295,-1339.0,0.00016438,2]
[419673577,1775278244305,-1339.0,0.00016438,2]
[419673578,1775278244315,-1339.0,0.00016438,2]
[419673579,1775278244325,-1339.0,0.00016438,2]
[419673580,1775278244335,-1339.0,0.00016438,2]
[419673581,1775278244345,-1339.0,0.00016438,2]
[419673582,1775278244355,-1339.0,0.00016438,2]
[419673583,1775278244364,-1339.0,0.00016438,2]
[419673584,1775278244374,-1339.0,0.00016438,2]
[419673585,1775278244383,-1339.0,0.00016438,2]
[419673586,1775278244393,-1339.0,0.00016438,2]
[419673587,1775278244402,-1339.0,0.00016438,2]
[419673588,1775278244411,-1339.0,0.00016438,2]
[419673589,1775278244420,-1339.0,0.00016438,2]
[419673590,1775278244430,-1339.0,0.00016438,2]
[419673591,1775278244439,-1339.0,0.00016438,2]
[419673592,1775278244449,-1340.13847977,0.00016438,2]
[419673593,1775278244458,-500.0,0.00016438,2]
[419673594,1775278244468,-500.0,0.00016438,2]
[419673595,1775278244477,-500.0,0.00016438,2]
[419673596,1775278244486,-500.0,0.00016438,2]
[419673597,1775278244496,-500.0,0.00016438,2]
[419673598,1775278244505,-500.0,0.00016438,2]
[419673599,1775278244515,-344.84693366,0.00016438,2]
[419673600,1775278244524,-150.92,0.00016438,2]
[419673601,1775278244534,-1637.4,0.00016438,2]
[419673602,1775278244543,-267.31,0.00016438,2]
[419673603,1775278244553,-869.0,0.00016469,2]
[419673604,1775278244562,-869.0,0.00016505,2]
[419673605,1775278244571,-869.0,0.00016606,2]
[419673606,1775278244581,-869.0,0.00016632,2]
[419673607,1775278244590,-869.0,0.00016699,2]
[419673608,1775278244600,-194.72792766,0.00016716,2]
[419673609,1775278244609,-161.57925816,0.00016818,2]
[419673610,1775278244620,-869.0,0.00016848,2]
[419673611,1775278244629,-550.11,0.00016931,2]
[419673612,1775278244638,-869.0,0.00016964,2]
[419673613,1775278244648,-869.0,0.00016991,2]
[419673614,1775278244657,-869.0,0.0001707,2]
[419673615,1775278244666,-869.0,0.00017081,2]
[419673616,1775278244676,-869.0,0.00017086,2]
[419673617,1775278244685,-201.93286099,0.00017264,2]
[419673618,1775278244694,-7234.12629661,0.00017308,2]
[419673619,1775278244704,-501.74115938,0.00017511,2]
[419673620,1775278244713,-3650.0,0.00017536,5]
[419673621,1775278244723,-3139.0,0.00017536,5]
[419673622,1775278244732,-523.0,0.0001757,5]
[419673623,1775278244742,-604.87,0.00017616,30]
[419673624,1775278244751,-219.12828,0.00017619,2]
[419673625,1775278244760,-867.0,0.000178,2]
[419673626,1775278244770,-611.0,0.000178,2]
[419673627,1775278244779,-1000.0,0.000178,2]
[419673628,1775278244788,-623.0,0.000178,2]
[419673629,1775278244798,-209.40437684,0.00017812,2]
[419673630,1775278244807,-7982.11544828,0.00017914,2]
[419673631,1775278244816,-4000.0,0.0001811,2]
[419673632,1775278244827,-781.57,0.00018213,2]
[419673633,1775278244836,-217.15233878,0.0001836,2]
[419673634,1775278244847,-4000.0,0.00018563,2]
[419673635,1775278244857,-4412.620347,0.00018587,2]
[419673636,1775278244866,-221562.9125502,0.00018587,2]
[419673637,1775278244877,-151.0,0.00018587,2]
[419673638,1775278244886,-151.0,0.00018587,2]
[419673639,1775278244895,-151.0,0.00018587,2]
[419673640,1775278244904,-151.0,0.00018587,2]
[419673641,1775278244914,-150.92,0.00018856,2]
[419673642,1775278244923,-150.0,0.000189,7]
[419673643,1775278244933,-225.18697532,0.00018908,2]
[419673644,1775278244943,-781.57,0.00019015,2]
[419673645,1775278244953,-4000.0,0.00019015,2]
[419673646,1775278244962,-174.78,0.00019256,2]
[419673647,1775278244972,-167.53912324,0.00019456,2]
[419673648,1775278244981,-4000.0,0.00019468,2]
[419673649,1775278244990,-186.053973,0.00019525,2]
[419673650,1775278244999,-151.0,0.00019525,2]
[419673651,1775278245009,-186.053973,0.00019525,2]
[419673652,1775278245018,-186.053973,0.00019525,2]
[419673653,1775278245028,-186.053973,0.00019525,2]
[419673654,1775278245038,-589.901202,0.00019525,2]
[419673655,1775278245048,-589.901202,0.00019525,2]
[419673656,1775278245058,-391.658756,0.00019525,2]
[419673657,1775278245067,-589.901202,0.00019525,2]
[419673658,1775278245077,-391.658756,0.00019525,2]
[419673659,1775278245086,-589.901202,0.00019525,2]
[419673660,1775278245095,-391.658756,0.00019525,2]
[419673661,1775278245105,-391.658756,0.00019525,2]
[419673662,1775278245114,-7982.11544828,0.00019525,2]
[419673663,1775278245125,-2007.0,0.000197,2]
[419673664,1775278245136,-219.12828,0.00019917,2]
[419673665,1775278245146,-4000.0,0.00019921,2]
[419673666,1775278245156,-514.0,0.0002,2]
[419673667,1775278245166,-169.0,0.00020172,120]
[419673668,1775278245176,-1701.5685117,0.0002049,2]
[419673669,1775278245185,-2000.0,0.000205,2]
[419673670,1775278245195,-150.0,0.00020629,2]
[419673671,1775278245204,-1000.0,0.00020656,2]
[419673672,1775278245214,-150.0,0.00020657,2]
[419673673,1775278245223,-1000.0,0.00020658,2]
[419673674,1775278245232,-150.0,0.00020664,2]
[419673675,1775278245241,-1000.0,0.00020688,2]
[419673676,1775278245251,-1000.0,0.00020699,2]
[419673677,1775278245261,-1074.57041,0.000207,2]
[419673678,1775278245270,-1074.57042,0.000207,2]
[419673679,1775278245280,-1074.57042,0.000207,2]
[419673680,1775278245289,-154.6173872,0.00020725,2]
[419673681,1775278245299,-1000.0,0.00020725,2]
[419673682,1775278245309,-1000.0,0.00020734,2]
[419673683,1775278245318,-1000.0,0.00020772,2]
[419673684,1775278245328,-1000.0,0.00020779,2]
[419673685,1775278245338,-150.0,0.00020782,2]
[419673686,1775278245347,-150.0,0.00020783,2]
[419673687,1775278245356,-150.0,0.00020824,2]
[419673688,1775278245366,-150.0,0.00020827,2]
[419673689,1775278245377,-1000.0,0.00020832,2]
[419673690,1775278245387,-1000.0,0.00020832,2]
[419673691,1775278245402,-150.0,0.00020833,2]
[419673692,1775278245411,-1000.0,0.0002085,2]
[419673693,1775278245421,-150.0,0.00020857,2]
[419673694,1775278245430,-150.0,0.00020861,2]
[419673695,1775278245440,-150.0,0.00020889,2]
[419673696,1775278245449,-389.0,0.000209,2]
[419673697,1775278245459,-200.0,0.000209,10]
[419673698,1775278245468,-150.0,0.000209,2]
[419673699,1775278245479,-466.7284072,0.000209,2]
[419673700,1775278245490,-150.0,0.00020902,2]
[419673701,1775278245499,-250.0,0.00020904,3]
[419673702,1775278245509,-151.0,0.00020905,2]
[419673703,1775278245519,-1000.0,0.00020908,2]
[419673704,1775278245528,-1071.4,0.00020908,2]
[419673705,1775278245538,-200.0,0.00020908,2]
[419673706,1775278245547,-1074.57042,0.00020908,2]
[419673707,1775278245557,-1074.57042,0.00020908,2]
[419673708,1775278245567,-1074.57042,0.00020908,2]
[419673709,1775278245576,-627.14,0.00020958,2]
[419673710,1775278245586,-1050.137,0.00020958,2]
[419673711,1775278245595,-1350.934,0.00020958,2]
[419673712,1775278245604,-3521.0,0.00020958,2]
[419673713,1775278245614,-150.475,0.00020958,2]
[419673714,1775278245623,-1263.0,0.00020958,2]
[419673715,1775278245633,-925.0,0.00020958,2]
[419673716,1775278245642,-1221.85,0.00020958,2]
[419673717,1775278245651,-2470.0,0.00020958,2]
[419673718,1775278245662,-420.887,0.00020958,2]
[419673719,1775278245671,-500.0,0.00020973,2]
[419673720,1775278245680,-300.0,0.00021,10]
[419673721,1775278245690,-7234.12629661,0.00021059,2]
[419673722,1775278245699,-26522.24355216,0.00021104,2]
[419673723,1775278245708,-200.0,0.00021117,2]
[419673724,1775278245718,-7982.11544828,0.00021137,2]
[419673725,1775278245727,-169.0,0.00021181,120]
[419673726,1775278245736,-150.92,0.00021273,2]
[419673727,1775278245746,-200.0,0.00021328,2]
[419673728,1775278245755,-781.57,0.00021395,2]
[419673729,1775278245764,-221562.9125502,0.00021396,2]
[419673730,1775278245773,-183.58,0.000215,7]
[419673731,1775278245783,-1000.0,0.00021521,2]
[419673732,1775278245793,-200.0,0.00021542,2]
[419673733,1775278245802,-2000.0,0.000217,2]
[419673734,1775278245811,-200.0,0.00021757,2]
[419673735,1775278245822,-389.0,0.000219,2]
[419673736,1775278245833,-200.0,0.000219,30]
[419673737,1775278245844,-200.0,0.000219,30]
[419673738,1775278245853,-200.0,0.000219,30]
[419673739,1775278245862,-200.0,0.000219,30]
[419673740,1775278245872,-200.0,0.000219,30]
[419673741,1775278245881,-5000.0,0.00021918,2]
[419673743,1775278245890,-150.0,0.00021918,2]
[419673744,1775278245899,-523.0,0.00022029,9]
[419673745,1775278245909,-169.0,0.0002224,120]
[419673746,1775278245918,-350.0,0.00022607,2]
[419673747,1775278245927,-620.80859402,0.0002273,2]
[419673748,1775278245936,-2302.21,0.0002274,2]
[419673749,1775278245946,-7982.11544828,0.00022748,2]
[419673751,1775278245954,-984.5886847,0.00022827,2]
[419673753,1775278245963,-404.14422201,0.0002285,2]
[419673755,1775278245972,-500.0,0.0002285,2]
[419673757,1775278245981,-500.67291823,0.0002285,2]
[419673758,1775278245990,-419.18220394,0.0002285,2]
[419673759,1775278246000,-500.92096855,0.0002285,2]
[419673760,1775278246009,-500.0,0.0002285,2]
[419673761,1775278246018,-500.0,0.0002285,2]
[419673762,1775278246027,-165.00502139,0.0002285,2]
[419673763,1775278246106,-500.0,0.0002285,2]
[419673764,1775278246117,-500.0,0.0002285,2]
[419673765,1775278246130,-174.78,0.00022872,2]
[419673766,1775278246140,-389.0,0.000229,2]
[419673767,1775278246152,-150.39154269,0.00023288,2]
[419673768,1775278246163,-2547.0240144,0.00023344,2]
[419673769,1775278246172,-168.40138617,0.00023344,2]
[419673770,1775278246181,-151.0,0.00023361,7]
[419673771,1775278246191,-503.29243865,0.00023398,2]
[419673772,1775278246200,-501.55161327,0.00023398,2]
[419673773,1775278246210,-1000.0,0.00023398,2]
[419673774,1775278246220,-1000.0,0.00023398,2]
[419673775,1775278246229,-502.40500922,0.00023398,2]
[419673776,1775278246239,-150.92,0.00023691,2]
[419673777,1775278246248,-219.6914309,0.00023773,2]
[419673778,1775278246257,-389.0,0.000239,2]
[419673779,1775278246267,-513.6791618,0.00023946,2]
[419673780,1775278246276,-309.88017644,0.00023946,2]
[419673781,1775278246285,-1347.0,0.00023958,2]
[419673782,1775278246294,-3447.301,0.00023958,2]
[419673783,1775278246303,-150.0,0.00023958,2]
[419673784,1775278246312,-1263.0,0.00023958,2]
[419673785,1775278246322,-277.443,0.00023958,2]
[419673786,1775278246331,-2470.0,0.00023958,2]
[419673787,1775278246340,-150.0,0.00024151,2]
[419673788,1775278246349,-150.0,0.00024151,2]
[419673789,1775278246358,-150.0,0.00024151,7]
[419673790,1775278246368,-450.0,0.00024151,2]
[419673791,1775278246378,-300.0,0.00024151,2]
[419673792,1775278246387,-781.57,0.00024203,2]
[419673793,1775278246405,-781.57,0.00024203,2]
[419673794,1775278246414,-781.57,0.00024203,2]
[419673795,1775278246423,-781.57,0.00024203,2]
[419673796,1775278246432,-781.59586876,0.00024203,2]
[419673797,1775278246441,-221562.9125502,0.00024204,2]
[419673798,1775278246451,-7982.11544828,0.0002436,2]
[419673799,1775278246460,-250.0,0.0002446,5]
[419673800,1775278246470,-1000.0,0.00024658,2]
[419673801,1775278246479,-7234.12629661,0.00024811,2]
[419673802,1775278246488,-666.0,0.00024899,2]
[419673803,1775278246497,-389.0,0.000249,2]
[419673804,1775278246506,-390176.481108,0.000249,2]
[419673805,1775278246516,-350.0,0.00025,3]
[419673806,1775278246525,-150.0,0.00025137,2]
[419673807,1775278246534,-150.295,0.00025137,2]
[419673808,1775278246543,-180.815,0.00025137,2]
[419673809,1775278246552,-150.165,0.00025137,2]
[419673810,1775278246562,-150.0,0.00025137,2]
[419673811,1775278246571,-392.10777095,0.000259,2]
[419673812,1775278246580,-150.92,0.00026108,2]
[419673813,1775278246589,-523.0,0.00026489,13]
[419673814,1775278246598,-500.0,0.00026695,120]
[419673815,1775278246607,-150.0,0.00026958,2]
[419673816,1775278246616,-290.261,0.00026958,2]
[419673817,1775278246625,-2032.749,0.00026958,2]
[419673818,1775278246634,-261.0,0.00027,30]
[419673819,1775278246645,-221562.9125502,0.00027013,2]
[419673820,1775278246655,-1000.0,0.00027397,20]
[419673821,1775278246664,-300.0,0.00027397,2]
[419673822,1775278246675,-165.188874,0.00027397,2]
[419673823,1775278246684,-223.873424,0.00027397,2]
[419673824,1775278246695,-1608.69,0.00027397,10]
[419673825,1775278246705,-2048.4,0.00027397,10]
[419673826,1775278246714,-1707.0,0.00027397,10]
[419673828,1775278246723,-250.0,0.00027515,9]
[419673829,1775278246733,-150.0,0.00028137,2]
[419673830,1775278246742,-150.0,0.00028137,2]
[419673831,1775278246754,-150.92,0.00028525,2]
[419673832,1775278246764,-7234.12629661,0.00028562,2]
[419673833,1775278246773,-174.78,0.00028645,2]
[419673834,1775278246782,-7547.38367846,0.0003,2]
[419673835,1775278246791,-250.0,0.00030141,15]
[419673836,1775278246800,-500.0,0.00030432,120]
[419673837,1775278246809,-174.78,0.00030802,2]
[419673838,1775278246819,-150.92,0.00030943,30]
[419673839,1775278246828,-523.0,0.00030948,17]
[419673840,1775278246840,-2505.0,0.00031463,7]
[419673841,1775278246851,-1701.5685117,0.00032008,2]
[419673842,1775278246862,-150.0,0.00032153,7]
[419673843,1775278246872,-150.0,0.00032153,7]
[419673844,1775278246884,-150.0,0.00032153,7]
[419673845,1775278246893,-150.0,0.00032153,7]
[419673846,1775278246903,-150.0,0.00032153,7]
[419673847,1775278246912,-150.0,0.00032153,7]
[419673848,1775278246924,-150.0,0.00032153,7]
[419673849,1775278246933,-150.0,0.00032153,7]
[419673850,1775278246942,-150.0,0.00032153,7]
[419673851,1775278246951,-150.0,0.00032153,7]
[419673852,1775278246960,-150.0,0.00032153,7]
[419673853,1775278246968,-150.0,0.00032153,7]
[419673854,1775278246977,-7234.12629661,0.00032313,2]
[419673855,1775278246986,-250.0,0.00032398,24]
[419673857,1775278246995,-150.0,0.00032451,7]
[419673858,1775278247004,-150.0,0.00032511,7]
[419673859,1775278247014,-150.0,0.0003255,7]
[419673860,1775278247023,-150.0,0.00032749,7]
[419673861,1775278247032,-150.0,0.00032749,7]
[419673862,1775278247040,-150.0,0.00032868,7]
[419673864,1775278247049,-151.000004,0.00032877,7]
[419673866,1775278247058,-5759.84,0.000329,2]
[419673867,1775278247067,-159.65,0.000329,30]
[419673868,1775278247076,-150.0,0.00032947,7]
[419673869,1775278247086,-150.0,0.00033047,7]
[419673870,1775278247095,-150.0,0.00033225,7]
[419673871,1775278247104,-150.0,0.00033344,7]
[419673872,1775278247113,-150.0,0.00033344,7]
[419673873,1775278247121,-150.0,0.00033344,7]
[419673874,1775278247130,-150.0,0.00033344,7]